bitfinex-derivatives/quotes_BTCF0:USTF0_20240815
["timestamp","ask_amount","ask_price","bid_price","bid_amount"]
[1723746815841,0.36468,57718.0,57709.0,0.086628]
[1723746816045,0.36468,57718.0,57698.0,0.3608]
[1723746816046,0.3608,57713.0,57698.0,0.3608]
[1723746816358,0.3608,57701.0,57687.0,0.3608]
[1723746816556,0.36092808,57701.0,57687.0,0.3608]
[1723746816762,0.3608,57695.0,57687.0,0.5108]
[1723746817048,0.3608,57689.0,57679.0,0.086673]
[1723746817351,0.3608,57682.0,57676.0,0.60344]
[1723746817551,0.00012846,57681.0,57677.0,0.086676]
[1723746817743,0.00012846,57681.0,57677.0,0.15]
[1723746817940,0.00012846,57681.0,57680.0,0.086672]
[1723746818252,0.00012846,57681.0,57680.0,0.226672]
[1723746818440,0.3608,57695.0,57694.0,0.086651]
[1723746818842,0.012,57701.0,57700.0,0.086642]
[1723746819156,0.086635,57706.0,57695.0,0.086649]
[1723746819358,0.3608,57708.0,57695.0,0.14]
[1723746819655,0.00025992,57700.0,57699.0,0.086644]
[1723746819956,0.00025992,57700.0,57699.0,0.15]
[1723746820159,0.00025992,57700.0,57699.0,1.06992]
[1723746820652,0.00025992,57700.0,57695.0,0.00025992]
[1723746820950,0.00025992,57700.0,57695.0,0.22690892]
[1723746821345,0.37405992,57700.0,57695.0,0.22690892]
[1723746821555,0.37405992,57700.0,57697.0,0.086646]
[1723746821747,0.37405992,57700.0,57695.0,0.00025992]
[1723746822049,0.37805992,57700.0,57695.0,0.00025992]
[1723746822254,0.3608,57696.0,57695.0,0.00025992]
[1723746822485,0.3608,57696.0,57676.0,0.3608]
[1723746822749,0.3608,57696.0,57678.0,0.39264]
[1723746822750,0.3608,57690.0,57678.0,0.39264]
[1723746823019,0.447466,57685.0,57678.0,0.24264]
[1723746823257,0.447466,57685.0,57672.0,0.086683]
[1723746823258,0.3608,57679.0,57672.0,0.086683]
[1723746823554,0.086677,57677.0,57672.0,0.16]
[1723746823943,0.08668,57676.0,57672.0,0.16]
[1723746824154,0.3608,57679.0,57670.0,0.00025992]
[1723746824448,0.88096,57679.0,57672.0,0.002]
[1723746824753,0.3608,57673.0,57654.0,0.24286239]
[1723746824948,0.3608,57660.0,57654.0,0.00022239]
[1723746825167,0.44751,57655.0,57654.0,0.00022239]
[1723746825343,0.3608,57655.0,57654.0,0.00022239]
[1723746826263,0.3668,57655.0,57654.0,0.00022239]
[1723746826464,0.45351,57655.0,57654.0,0.00022239]
[1723746826955,0.3668,57655.0,57654.0,0.00022239]
[1723746827162,0.008,57655.0,57654.0,0.60729339]
[1723746827345,0.00026016,57660.0,57659.0,0.086704]
[1723746827569,0.00026016,57660.0,57659.0,0.246704]
[1723746827845,0.3608,57674.0,57666.0,0.086693]
[1723746828046,0.3608,57669.0,57666.0,0.086693]
[1723746828254,0.3608,57669.0,57658.0,0.3608]
[1723746828451,0.3608,57669.0,57658.0,0.15]
[1723746828649,0.3608,57674.0,57658.0,0.15]
[1723746828841,0.3608,57674.0,57653.0,0.3608]
[1723746828842,0.009,57655.0,57654.0,0.08793339]
[1723746829053,0.009,57655.0,57654.0,0.00122239]
[1723746829445,0.009,57655.0,57654.0,0.08793339]
[1723746829647,0.447493,57666.0,57658.0,0.00626016]
[1723746829846,0.447493,57666.0,57658.0,0.00606016]
[1723746830073,0.3608,57660.0,57658.0,0.00606016]
[1723746830256,0.3608,57666.0,57658.0,0.00606016]
[1723746830451,0.3608,57666.0,57658.0,6.016e-05]
[1723746830651,0.3608,57661.0,57658.0,6.016e-05]
[1723746830859,0.086704,57659.0,57658.0,6.016e-05]
[1723746831393,0.086704,57659.0,57641.0,0.08673]
[1723746831394,0.52044555,57658.0,57638.0,0.3608]
[1723746831655,0.3608,57646.0,57638.0,0.3608]
[1723746831855,0.3608,57646.0,57638.0,0.447535]
[1723746832053,0.3608,57646.0,57638.0,0.3608]
[1723746832054,0.086729,57643.0,57638.0,0.3608]
[1723746832254,0.3608,57639.0,57621.0,0.3608]
[1723746832450,0.3608,57634.0,57630.0,0.086747]
[1723746832663,0.3608,57634.0,57628.0,0.3608]
[1723746833264,0.08686974,57642.0,57633.0,0.086741]
[1723746833451,0.08686974,57642.0,57634.0,0.086741]
[1723746833452,0.00014074,57642.0,57634.0,0.086741]
[1723746833694,0.00014074,57642.0,57635.0,0.086739]
[1723746833955,0.00014074,57642.0,57638.0,0.001]
[1723746834353,0.00014074,57642.0,57641.0,0.086731]
[1723746834746,0.00114074,57642.0,57641.0,0.086731]
[1723746834948,0.00114074,57642.0,57641.0,0.246731]
[1723746835358,0.00026016,57646.0,57645.0,0.086725]
[1723746835548,0.3608,57650.0,57649.0,0.086719]
[1723746835757,0.3608,57650.0,57649.0,0.236719]
[1723746836251,0.36090084,57650.0,57649.0,0.236719]
[1723746837472,0.00710084,57650.0,57649.0,0.237719]
[1723746837572,0.00026016,57655.0,57654.0,0.086711]
[1723746837753,0.00026016,57655.0,57654.0,0.236711]
[1723746837954,0.3608,57668.0,57654.0,1.0789559]
[1723746838386,0.3608,57668.0,57655.0,3.77]
[1723746838447,0.3608,57668.0,57662.0,0.086699]
[1723746838651,0.3608,57668.0,57662.0,0.16]
[1723746838848,0.3608,57672.0,57662.0,0.16]
[1723746839063,0.3608,57672.0,57667.0,0.086691]
[1723746839257,0.00026016,57671.0,57667.0,0.236691]
[1723746839758,0.00026016,57671.0,57659.0,0.00026016]
[1723746839947,0.3608,57666.0,57659.0,0.16026016]
[1723746840157,0.3608,57666.0,57659.0,0.15026016]
[1723746840347,0.3608,57666.0,57665.0,0.086695]
[1723746841250,0.3608,57666.0,57665.0,0.236695]
[1723746841251,0.3748,57666.0,57665.0,0.236695]
[1723746841765,0.447493,57666.0,57662.0,0.001]
[1723746841962,0.3748,57666.0,57662.0,0.001]
[1723746842268,0.3608,57663.0,57642.0,0.447528]
[1723746842450,0.3608,57651.0,57642.0,0.597528]
[1723746842646,0.3608,57651.0,57643.0,0.086727]
[1723746842854,0.3608,57651.0,57643.0,0.15]
[1723746843353,0.3608,57651.0,57648.0,0.086719]
[1723746843553,0.3608,57651.0,57650.0,0.086717]
[1723746843749,0.3608,57651.0,57650.0,0.226717]
[1723746844066,0.00026016,57653.0,57650.0,1.06036]
[1723746844366,0.00026016,57653.0,57650.0,0.14]
[1723746844553,0.00026016,57653.0,57652.0,0.086714]
[1723746844766,0.00026016,57653.0,57652.0,1.147034]
[1723746844955,0.086691,57668.0,57658.0,0.086705]
[1723746845272,0.3608,57669.0,57668.0,0.08669]
[1723746845563,0.3608,57682.0,57679.0,0.086673]
[1723746845885,0.3608,57687.0,57679.0,0.15]
[1723746846165,0.3608,57687.0,57686.0,0.086663]
[1723746846355,0.3608,57687.0,57686.0,0.236663]
[1723746846569,0.3608,57700.0,57686.0,1.07004]
[1723746846862,0.3608,57700.0,57686.0,0.15]
[1723746847057,0.3608,57700.0,57696.0,0.086648]
[1723746847260,0.3608,57700.0,57696.0,0.15]
[1723746847656,0.3608,57700.0,57699.0,0.086644]
[1723746847864,0.3608,57700.0,57699.0,0.236644]
[1723746848259,0.3728,57700.0,57699.0,0.236644]
[1723746848454,0.00025921,57705.0,57699.0,0.5108]
[1723746848647,0.00025921,57705.0,57704.0,0.086636]
[1723746848882,0.3608,57720.0,57704.0,0.5208]
[1723746849060,0.30718259,57752.0,57704.0,0.5208]
[1723746849061,0.3608,57733.0,57711.0,0.3608]
[1723746849255,0.3608,57733.0,57711.0,0.5008]
[1723746849493,0.3608,57733.0,57717.0,0.3608]
[1723746849665,0.3608,57733.0,57722.0,0.3608]
[1723746849958,0.3608,57733.0,57729.0,0.086598]
[1723746850116,0.3608,57745.0,57729.0,0.5308]
[1723746850281,0.3608,57755.0,57740.0,0.3608]
[1723746850464,0.3608,57755.0,57743.0,0.086576]
[1723746850653,0.3608,57755.0,57746.0,0.3608]
[1723746850886,0.3608,57755.0,57746.0,0.5108]
[1723746851275,0.3608,57768.0,57754.0,0.3608]
[1723746851909,0.3608,57768.0,57755.0,0.24276]
[1723746851923,0.3608,57768.0,57755.0,0.39276]
[1723746851939,0.3608,57763.0,57755.0,0.24276]
[1723746852369,0.3608,57768.0,57761.0,0.08655]
[1723746852370,0.004,57768.0,57761.0,0.08655]
[1723746852557,0.004,57768.0,57765.0,0.3608]
[1723746852882,0.090541,57768.0,57755.0,0.24276]
[1723746853072,0.3608,57763.0,57755.0,0.24276]
[1723746853256,0.3608,57763.0,57756.0,0.00025967]
[1723746853955,0.3748,57763.0,57756.0,0.00025967]
[1723746854360,0.3608,57783.0,57762.0,0.3608]
[1723746854668,0.3608,57783.0,57760.0,0.3608]
[1723746854669,0.3608,57783.0,57767.0,0.3608]
[1723746854903,0.3608,57777.0,57767.0,0.3608]
[1723746855086,0.3608,57783.0,57767.0,0.3608]
[1723746855670,0.3748,57783.0,57767.0,0.3608]
[1723746856060,0.3608,57776.0,57769.0,0.00025967]
[1723746856361,0.461318,57783.0,57769.0,0.00025967]
[1723746856569,0.3748,57783.0,57769.0,0.00025967]
[1723746856868,0.3888,57783.0,57769.0,0.00025967]
[1723746857063,0.3608,57777.0,57769.0,0.00025967]
[1723746857270,0.08653,57775.0,57769.0,0.00025967]
[1723746857469,0.086536,57771.0,57769.0,0.00025967]
[1723746857684,0.086538,57770.0,57753.0,0.26852876]
[1723746857971,0.3608,57765.0,57753.0,0.40852876]
[1723746858282,0.06438259,57771.0,57753.0,0.40852876]
[1723746858283,0.3608,57755.0,57753.0,0.18196676]
[1723746858494,0.49509057,57760.0,57753.0,0.18196676]
[1723746858715,0.447353,57760.0,57746.0,0.3608]
[1723746858874,0.3608,57760.0,57746.0,0.3608]
[1723746859170,0.3608,57755.0,57746.0,0.3608]
[1723746859604,0.3604,57755.0,57746.0,0.3608]
[1723746859776,0.3608,57760.0,57746.0,0.9308]
[1723746860059,0.3608,57760.0,57751.0,0.00025967]
[1723746860273,0.3618,57760.0,57754.0,0.3608]
[1723746860455,0.001,57760.0,57751.0,0.00025967]
[1723746860767,0.001,57760.0,57756.0,0.3608]
[1723746860970,0.001,57760.0,57756.0,0.9308]
[1723746861278,0.00025806,57762.0,57756.0,0.9308]
[1723746861279,0.00025806,57762.0,57757.0,0.5194]
[1723746861576,0.00025806,57762.0,57761.0,0.447351]
[1723746861867,0.001,57760.0,57755.0,0.086559]
[1723746862088,0.001,57760.0,57752.0,0.00983043]
[1723746862449,0.008,57760.0,57752.0,0.256563]
[1723746862770,0.3608,57754.0,57751.0,0.00125967]
[1723746862972,0.3608,57754.0,57751.0,0.00025967]
[1723746863265,0.3608,57754.0,57751.0,0.14025967]
[1723746863773,0.3608,57754.0,57752.0,0.086564]
[1723746864073,0.00325806,57762.0,57757.0,0.001]
[1723746864266,0.3608,57758.0,57757.0,0.001]
[1723746865373,0.3608,57758.0,57731.0,0.16371488]
[1723746865374,0.001,57754.0,57731.0,0.16371488]
[1723746865585,0.001,57754.0,57717.0,0.8186]
[1723746865586,0.3608,57738.0,57717.0,0.3608]
[1723746865773,0.3608,57730.0,57719.0,0.17]
[1723746865975,0.3608,57730.0,57719.0,0.17862622]
[1723746866403,0.3608,57724.0,57719.0,0.00862622]
[1723746866612,0.00014707,57723.0,57714.0,0.086621]
[1723746866788,0.3608,57718.0,57709.0,0.3608]
[1723746866995,0.00014707,57723.0,57715.0,0.086619]
[1723746867201,0.00014707,57723.0,57721.0,0.08661]
[1723746867483,0.00014707,57723.0,57712.0,0.086624]
[1723746867679,0.00014707,57723.0,57701.0,0.86514]
[1723746867680,0.3608,57719.0,57708.0,0.00025989]
[1723746867975,0.3608,57719.0,57717.0,0.086616]
[1723746868166,0.3608,57719.0,57714.0,0.002]
[1723746868580,0.3608,57719.0,57718.0,0.086615]
[1723746868874,0.00014707,57723.0,57722.0,0.086609]
[1723746869576,0.00014707,57723.0,57719.0,0.001]
[1723746869831,0.3608,57721.0,57719.0,0.001]
[1723746869963,0.3608,57721.0,57718.0,0.001]
[1723746869964,0.006,57719.0,57718.0,0.001]
[1723746870275,0.006,57719.0,57718.0,0.087615]
[1723746870476,0.006,57719.0,57718.0,0.001]
[1723746870875,0.3608,57721.0,57719.0,0.001]
[1723746871782,0.00914707,57723.0,57719.0,0.00984832]
[1723746871972,0.00914707,57723.0,57722.0,0.086609]
[1723746872173,0.00914707,57723.0,57722.0,0.00883533]
[1723746872366,0.00914707,57723.0,57722.0,0.086609]
[1723746872675,0.00014707,57723.0,57722.0,0.00881021]
[1723746872877,0.00014707,57723.0,57722.0,0.16]
[1723746873087,0.00014707,57723.0,57722.0,0.25509326]
[1723746873605,0.00025967,57730.0,57729.0,0.086599]
[1723746873766,0.3608,57741.0,57730.0,0.086597]
[1723746873970,0.3608,57741.0,57736.0,0.3608]
[1723746874174,0.24252,57769.0,57745.0,0.086573]
[1723746874175,0.447357,57757.0,57745.0,0.086573]
[1723746874381,0.447357,57757.0,57736.0,0.5008]
[1723746874382,0.3608,57757.0,57736.0,0.3608]
[1723746874579,0.3608,57757.0,57742.0,0.086578]
[1723746874777,0.3608,57757.0,57744.0,0.086576]
[1723746874979,0.3608,57757.0,57744.0,0.17]
[1723746875475,0.00025882,57755.0,57746.0,0.3608]
[1723746875680,0.00025882,57755.0,57752.0,0.086564]
[1723746875869,0.00025882,57755.0,57746.0,0.3608]
[1723746876078,0.00025882,57755.0,57746.0,0.607373]
[1723746876280,0.00025882,57755.0,57747.0,0.086571]
[1723746876473,0.00025882,57755.0,57745.0,0.001]
[1723746876474,0.447367,57750.0,57745.0,0.001]
[1723746876676,0.00025882,57755.0,57745.0,0.001]
[1723746876881,0.00025882,57755.0,57749.0,0.3608]
[1723746877072,0.00025882,57755.0,57744.0,0.00025989]
[1723746877073,0.00025882,57755.0,57746.0,0.086573]
[1723746877287,0.00025882,57755.0,57744.0,0.00025989]
[1723746877499,0.00025882,57755.0,57754.0,0.086561]
[1723746877789,0.00225882,57755.0,57754.0,0.086561]
[1723746878172,0.00225882,57755.0,57752.0,0.00866443]
[1723746878395,0.00225882,57755.0,57749.0,0.086568]
[1723746878677,0.00225882,57755.0,57754.0,0.086561]
[1723746878878,0.00725882,57755.0,57754.0,0.00986369]
[1723746879079,0.00725882,57755.0,57754.0,0.24642469]
[1723746879275,0.00725882,57755.0,57754.0,0.09642469]
[1723746879479,0.00525882,57755.0,57754.0,0.001]
[1723746879681,0.00625882,57755.0,57754.0,0.001]
[1723746879883,0.00625882,57755.0,57754.0,0.0096143]
[1723746880220,0.00625882,57755.0,57746.0,0.3608]
[1723746880221,1.28649882,57755.0,57744.0,0.00025989]
[1723746880387,0.447375,57745.0,57744.0,0.00025989]
[1723746880802,1.727695,57745.0,57744.0,1e-08]
[1723746880980,1.81427,57745.0,57744.0,1e-08]
[1723746881297,0.086584,57739.0,57721.0,0.329049]
[1723746881485,0.3608,57722.0,57715.0,0.3608]
[1723746881686,0.3608,57722.0,57715.0,0.5208]
[1723746882085,0.3608,57722.0,57718.0,0.086614]
[1723746882979,0.3608,57719.0,57713.0,0.00025989]
[1723746883190,0.086627,57711.0,57698.0,0.3608]
[1723746883392,0.3608,57709.0,57698.0,0.5208]
[1723746884496,0.3608,57709.0,57700.0,0.086642]
[1723746884497,0.3608,57703.0,57700.0,0.086642]
[1723746885287,0.3608,57703.0,57701.0,0.08664]
[1723746885479,0.3608,57703.0,57702.0,0.086639]
[1723746885675,0.00125989,57709.0,57708.0,0.08663]
[1723746885885,0.3608,57724.0,57708.0,0.3608]
[1723746886086,0.3608,57729.0,57719.0,0.086613]
[1723746886385,0.3608,57729.0,57714.0,0.08662]
[1723746886386,0.447406,57724.0,57714.0,0.08662]
[1723746886585,0.447406,57724.0,57716.0,0.3608]
[1723746886586,0.3608,57724.0,57716.0,0.3608]
[1723746886795,0.3608,57729.0,57716.0,0.3608]
[1723746886796,0.3608,57729.0,57720.0,0.3608]
[1723746886997,0.3608,57729.0,57728.0,0.0866]
[1723746887294,0.3608,57729.0,57728.0,0.08649]
[1723746887481,0.3608,57729.0,57720.0,0.3608]
[1723746887482,0.3608,57736.0,57720.0,0.3608]
[1723746887783,0.009,57724.0,57723.0,0.086608]
[1723746888487,0.009,57729.0,57728.0,0.001]
[1723746889191,0.009,57729.0,57728.0,0.0876]
[1723746889401,0.00848047,57729.0,57728.0,1.53808]
[1723746889584,0.3608,57737.0,57728.0,1.62468]
[1723746889778,0.3608,57756.0,57735.0,0.3608]
[1723746889984,0.3608,57756.0,57746.0,0.086572]
[1723746890690,0.3608,57756.0,57753.0,0.086562]
[1723746890887,0.3608,57756.0,57746.0,0.5208]
[1723746890888,0.007,57756.0,57748.0,0.00885704]
[1723746891095,0.007,57756.0,57743.0,0.01012783]
[1723746891306,0.007,57756.0,57745.0,0.36105989]
[1723746891481,0.007,57756.0,57745.0,0.51105989]
[1723746891748,0.007,57756.0,57745.0,0.36105989]
[1723746891986,0.08656,57755.0,57745.0,0.36105989]
[1723746892188,0.3678,57756.0,57745.0,0.36105989]
[1723746892189,0.08657,57748.0,57745.0,0.36105989]
[1723746892495,0.808173,57746.0,57745.0,1e-08]
[1723746892711,0.894746,57746.0,57745.0,1e-08]
[1723746892898,1.814266,57746.0,57745.0,1e-08]
[1723746893199,1.727693,57746.0,57745.0,1e-08]
[1723746893490,1.727694,57746.0,57724.0,0.3608]
[1723746893707,0.3608,57734.0,57724.0,0.3608]
[1723746893885,0.086593,57733.0,57724.0,0.3608]
[1723746894085,0.3608,57729.0,57718.0,0.3608]
[1723746894391,0.086602,57727.0,57719.0,0.086612]
[1723746894691,0.086597,57730.0,57713.0,0.60328]
[1723746894992,0.3608,57733.0,57713.0,0.60328]
[1723746894993,0.08685889,57729.0,57718.0,0.00025989]
[1723746895297,0.447414,57719.0,57718.0,0.00025989]
[1723746895779,0.3608,57719.0,57718.0,0.00025989]
[1723746896495,0.447414,57719.0,57718.0,0.00025989]
[1723746897090,0.967174,57719.0,57718.0,0.00025989]
[1723746897391,0.88056,57719.0,57718.0,0.00025989]
[1723746897791,0.967174,57719.0,57718.0,0.00125989]
[1723746897981,1.28056,57719.0,57703.0,0.3608]
[1723746898189,0.3608,57709.0,57697.0,0.05161232]
[1723746898394,0.3608,57709.0,57697.0,0.00022256]
[1723746898589,0.3608,57709.0,57708.0,0.08663]
[1723746899251,0.3608,57716.0,57713.0,0.086622]
[1723746899399,0.3608,57716.0,57701.0,0.3608]
[1723746899400,0.3608,57716.0,57706.0,0.3608]
[1723746899618,0.3608,57716.0,57706.0,0.5108]
[1723746899792,0.3608,57716.0,57715.0,0.08662]
[1723746900100,0.3608,57716.0,57706.0,0.5108]
[1723746900101,1e-08,57714.0,57713.0,0.447423]
[1723746900295,0.3608,57732.0,57715.0,0.17]
[1723746900500,0.3608,57741.0,57727.0,0.3608]
[1723746900501,0.3608,57735.0,57727.0,0.3608]
[1723746900695,0.3608,57735.0,57727.0,0.00867963]
[1723746900696,0.3608,57728.0,57727.0,0.00867963]
[1723746900996,0.3608,57728.0,57717.0,0.05149448]
[1723746900997,0.3608,57730.0,57717.0,0.05149448]
[1723746901199,0.4547,57753.0,57715.0,0.001]
[1723746901200,0.3608,57718.0,57715.0,0.001]
[1723746901497,0.086618,57716.0,57715.0,0.001]
[1723746901707,0.086618,57716.0,57706.0,0.004]
[1723746901708,0.086622,57714.0,57706.0,0.004]
[1723746901893,0.3608,57711.0,57706.0,0.004]
[1723746902097,0.3608,57711.0,57702.0,0.086639]
[1723746902293,0.3608,57711.0,57704.0,0.00025989]
[1723746903195,0.3608,57711.0,57704.0,0.08689589]
[1723746903590,0.3608,57711.0,57710.0,0.086627]
[1723746903894,0.008,57716.0,57710.0,0.086627]
[1723746903895,0.008,57716.0,57710.0,0.16]
[1723746904097,0.086625,57712.0,57704.0,0.00025989]
[1723746904395,0.093618,57716.0,57705.0,0.086634]
[1723746904599,0.093618,57716.0,57705.0,0.086554]
[1723746904787,0.00025989,57722.0,57709.0,0.3608]
[1723746904993,0.00025989,57722.0,57715.0,0.3608]
[1723746905192,0.00025989,57722.0,57710.0,0.05149448]
[1723746905396,0.00025989,57722.0,57704.0,3.84677958]
[1723746905397,0.086624,57712.0,57704.0,3.77225989]
[1723746905590,0.3608,57705.0,57704.0,0.00825989]
[1723746906091,0.3608,57705.0,57704.0,0.00225989]
[1723746906396,0.447435,57705.0,57704.0,0.00225989]
[1723746907101,0.086645,57698.0,57697.0,0.00022256]
[1723746907295,0.3608,57698.0,57697.0,0.00022256]
[1723746907494,0.3608,57705.0,57697.0,0.00022256]
[1723746907901,0.3618,57705.0,57704.0,0.009]
[1723746908086,0.3628,57705.0,57704.0,0.009]
[1723746908291,0.449435,57705.0,57704.0,0.009]
[1723746908591,0.001,57705.0,57699.0,0.00025989]
[1723746909112,0.001,57705.0,57701.0,0.3608]
[1723746909291,0.00025989,57710.0,57709.0,0.086629]
[1723746909519,1e-08,57710.0,57709.0,0.086629]
[1723746909701,1e-08,57710.0,57709.0,1.30161769]
[1723746910001,1e-08,57710.0,57709.0,1.66044692]
[1723746910204,1e-08,57710.0,57709.0,5.70749705]
[1723746910384,0.3608,57738.0,57709.0,5.53943069]
[1723746910620,0.3608,57749.0,57733.0,0.3608]
[1723746910805,0.3608,57751.0,57734.0,0.05155291]
[1723746910997,0.3608,57751.0,57738.0,0.3608]
[1723746911214,0.3608,57751.0,57743.0,0.086577]
[1723746911401,0.3608,57751.0,57739.0,0.05155291]
[1723746911598,0.3608,57751.0,57739.0,0.3608]
[1723746911903,0.4531,57771.0,57750.0,0.086567]
[1723746911904,0.3608,57763.0,57750.0,0.086567]
[1723746912097,0.005,57751.0,57744.0,0.05155291]
[1723746912297,0.005,57751.0,57748.0,0.08657]
[1723746912630,0.005,57751.0,57742.0,0.05155291]
[1723746912802,0.086578,57743.0,57741.0,0.00025989]
[1723746913107,0.011,57751.0,57741.0,0.00025989]
[1723746913108,0.447379,57742.0,57741.0,0.00025989]
[1723746913503,0.966939,57742.0,57741.0,0.00025989]
[1723746914003,0.966939,57742.0,57741.0,0.00125989]
[1723746914314,0.001,57743.0,57741.0,0.00125989]
[1723746914601,0.014,57751.0,57750.0,0.086567]
[1723746915301,0.3608,57765.0,57748.0,0.3608]
[1723746915522,0.3608,57780.0,57752.0,0.05147844]
[1723746915802,0.3608,57780.0,57767.0,0.3608]
[1723746916009,0.086524,57779.0,57768.0,0.08654]
[1723746916209,0.3608,57780.0,57769.0,0.086538]
[1723746916501,0.3608,57780.0,57771.0,0.086535]
[1723746916898,0.3608,57774.0,57769.0,0.00025966]
[1723746917102,0.086536,57771.0,57769.0,0.00025966]
[1723746917312,0.88008,57773.0,57752.0,0.3608]
[1723746917601,0.3608,57761.0,57750.0,0.002]
[1723746918007,0.3608,57770.0,57756.0,0.3608]
[1723746918204,0.3608,57770.0,57767.0,0.001]
[1723746918511,0.3608,57770.0,57769.0,0.001]
[1723746919101,0.00025966,57774.0,57769.0,0.087538]
[1723746919307,0.00025966,57774.0,57769.0,0.001]
[1723746920034,0.00025966,57774.0,57769.0,0.3618]
[1723746920312,0.086543,57766.0,57763.0,0.00025966]
[1723746920501,0.447346,57764.0,57763.0,0.00025966]
[1723746920704,0.3608,57764.0,57763.0,0.00025966]
[1723746920907,0.3608,57764.0,57763.0,0.08680766]
[1723746921098,0.88016,57764.0,57763.0,0.08680766]
[1723746921300,1.366706,57764.0,57763.0,0.00025966]
[1723746921707,0.980706,57764.0,57763.0,0.00125966]
[1723746921903,0.980706,57764.0,57756.0,0.001]
[1723746921904,0.086557,57757.0,57756.0,0.001]
[1723746922107,1.380706,57764.0,57756.0,0.001]
[1723746922108,0.086549,57763.0,57756.0,0.001]
[1723746922312,0.086549,57762.0,57755.0,0.3608]
[1723746922501,0.3748,57764.0,57763.0,0.001]
[1723746922502,0.3758,57764.0,57763.0,0.001]
[1723746922810,0.015,57764.0,57763.0,0.002]
[1723746923015,0.015,57764.0,57763.0,0.088548]
[1723746924507,0.619906,57764.0,57763.0,0.001]
[1723746924707,0.53336,57764.0,57763.0,0.001]
[1723746924899,0.086554,57759.0,57758.0,0.00025966]
[1723746925111,0.009,57762.0,57758.0,0.00025966]
[1723746925601,0.086548,57763.0,57758.0,0.00025966]
[1723746925796,0.086554,57759.0,57758.0,0.00025966]
[1723746926225,0.003,57759.0,57758.0,0.00125966]
[1723746927200,0.089554,57759.0,57758.0,0.00125966]
[1723746927324,0.089554,57759.0,57758.0,0.00225966]
[1723746927505,0.8832,57759.0,57743.0,0.086577]
[1723746927703,0.086562,57754.0,57745.0,0.607374]
[1723746927899,0.086562,57754.0,57745.0,0.5208]
[1723746928107,0.086555,57758.0,57745.0,0.5208]
[1723746928303,0.086557,57757.0,57749.0,0.086568]
[1723746928815,0.086569,57749.0,57747.0,0.00025966]
[1723746929005,0.086561,57754.0,57747.0,0.00025966]
[1723746929312,0.37205966,57759.0,57747.0,0.00025966]
[1723746929614,0.086563,57753.0,57747.0,0.00025966]
[1723746929907,0.37205966,57759.0,57752.0,0.3608]
[1723746929908,0.01125966,57759.0,57752.0,0.3608]
[1723746930419,0.08657,57748.0,57747.0,0.00025966]
[1723746930708,0.086567,57750.0,57747.0,0.00025966]
[1723746930960,0.086567,57750.0,57747.0,0.00125966]
[1723746931109,0.086562,57754.0,57747.0,0.00125966]
[1723746931318,0.3608,57755.0,57747.0,0.00125966]
[1723746931526,0.086567,57751.0,57747.0,0.00125966]
[1723746931905,0.001,57754.0,57747.0,0.00125966]
[1723746932413,0.001,57754.0,57747.0,0.16125966]
[1723746932607,0.00025966,57759.0,57747.0,0.16625966]
[1723746932798,0.08681366,57759.0,57747.0,0.16625966]
[1723746933003,0.44761366,57759.0,57748.0,3.77]
[1723746933198,0.44761366,57759.0,57752.0,0.086563]
[1723746934006,0.44761366,57759.0,57753.0,0.086562]
[1723746934309,0.36105966,57759.0,57749.0,0.086568]
[1723746934529,0.36105966,57759.0,57747.0,0.00625966]
[1723746934729,0.08657,57748.0,57747.0,0.00625966]
[1723746934919,0.086582,57740.0,57739.0,0.0001234]
[1723746935100,0.447382,57740.0,57739.0,0.0001234]
[1723746935305,0.3608,57749.0,57741.0,0.08658]
[1723746935306,0.3608,57742.0,57741.0,0.08658]
[1723746935605,0.086571,57748.0,57743.0,0.086576]
[1723746935807,0.3608,57749.0,57739.0,0.0001234]
[1723746936008,0.002,57759.0,57748.0,0.3608]
[1723746936214,0.002,57759.0,57758.0,0.086555]
[1723746936409,0.3608,57772.0,57766.0,0.086543]
[1723746936617,0.3608,57772.0,57764.0,0.3608]
[1723746936805,0.3608,57780.0,57764.0,0.3608]
[1723746936806,0.3608,57780.0,57769.0,0.3608]
[1723746937002,0.3608,57780.0,57760.0,1.0934]
[1723746937206,0.3608,57775.0,57760.0,1.0934]
[1723746937409,0.086535,57772.0,57762.0,0.00025966]
[1723746937621,0.3608,57770.0,57762.0,0.00025966]
[1723746937805,0.086546,57764.0,57762.0,0.00025966]
[1723746938304,0.00025966,57774.0,57762.0,0.00025966]
[1723746938305,0.08654,57768.0,57762.0,0.00025966]
[1723746938507,0.08654,57768.0,57766.0,0.001]
[1723746938707,0.3608,57771.0,57766.0,0.001]
[1723746938908,0.005,57772.0,57766.0,0.087543]
[1723746939113,0.00025966,57774.0,57765.0,0.3608]
[1723746939412,0.00025966,57774.0,57773.0,0.13797794]
[1723746939607,0.00025966,57774.0,57773.0,0.086533]
[1723746939800,0.00025966,57774.0,57773.0,0.13815253]
[1723746940003,0.00025966,57774.0,57773.0,0.086533]
[1723746940207,0.00025966,57774.0,57773.0,0.15527022]
[1723746940408,4e-05,57787.0,57773.0,0.66928]
[1723746940613,4e-05,57787.0,57786.0,0.3608]
[1723746941226,4e-05,57787.0,57776.0,0.086527]
[1723746941525,0.3608,57783.0,57769.0,0.13817221]
[1723746941753,4e-05,57787.0,57780.0,0.086521]
[1723746941947,0.00029966,57787.0,57777.0,0.3608]
[1723746942111,0.00029966,57787.0,57783.0,0.086517]
[1723746942329,0.00029966,57787.0,57777.0,0.41243321]
[1723746942608,0.086527,57777.0,57776.0,0.00125966]
[1723746943409,1.005767,57777.0,57766.0,0.05163321]
[1723746943605,1.005767,57777.0,57768.0,0.08654]
[1723746943606,0.086535,57772.0,57768.0,0.08654]